bitfinex-derivatives/quotes_SOLF0:USTF0_20250216
["timestamp","ask_amount","ask_price","bid_price","bid_amount"]
[1739713190430,0.03439989,192.12,191.81,261.26554306]
[1739713190621,0.2989,192.21,191.99,1.5619]
[1739713191629,0.03431929,192.12,192.08,0.03927855]
[1739713191827,0.2989,192.21,191.99,1.5619]
[1739713192025,0.03851137,192.12,192.08,0.03924268]
[1739713192225,0.2989,192.21,191.99,1.5619]
[1739713192530,0.03550906,192.12,192.08,0.03754409]
[1739713192732,32.01786594,192.2,191.82,5.80854608]
[1739713192934,0.79786594,192.19,191.83,0.95714608]
[1739713193136,31.22,192.11,191.83,0.95714608]
[1739713193331,0.148,192.1,191.83,0.95714608]
[1739713193837,0.03356379,191.98,191.95,0.03870689]
[1739713194226,15.61,192.08,191.95,0.03468445]
[1739713194432,0.03502381,191.98,191.83,0.95714608]
[1739713194640,15.61,192.08,192.0,0.03617733]
[1739713194930,0.03607251,192.06,191.83,0.95714608]
[1739713195134,15.61,192.08,192.02,0.03948305]
[1739713195339,0.148,192.1,191.83,0.95714608]
[1739713195340,0.03806617,191.96,191.93,0.03872424]
[1739713195639,0.1142,192.06,191.83,0.95714608]
[1739713195840,0.03510184,191.96,191.93,0.03487918]
[1739713196038,15.61,192.04,191.83,0.95714608]
[1739713196238,0.03442377,191.96,191.93,0.03688545]
[1739713196533,15.61,192.04,191.93,0.03688545]
[1739713196736,0.03881068,191.96,191.93,0.03688545]
[1739713197038,0.03613897,191.96,191.93,0.03688545]
[1739713201140,0.03613897,191.96,191.75,5.2]
[1739713201340,31.22,192.04,191.76,10.044]
[1739713202239,31.22,192.04,191.88,0.03507256]
[1739713202437,31.22,192.04,191.76,4.844]
[1739713202734,0.03553983,191.98,191.76,4.844]
[1739713202938,31.22,191.96,191.76,4.844]
[1739713203141,0.1522,191.95,191.76,4.844]
[1739713203840,0.03356043,191.87,191.84,0.03453702]
[1739713204040,0.1522,191.95,191.84,0.03453702]
[1739713204238,0.03542573,191.87,191.84,0.03453702]
[1739713204440,0.1522,191.95,191.84,0.03453702]
[1739713204941,0.0334264,191.91,191.84,0.03453702]
[1739713214348,15.6434264,191.91,191.58,195.0]
[1739713214549,0.0829,191.9,191.67,1.6117]
[1739713214848,0.0829,191.9,191.68,4.12603988]
[1739713215050,0.0829,191.9,191.69,0.95803988]
[1739713215547,0.03437904,191.81,191.78,0.03979965]
[1739713215943,0.1524,191.89,191.69,0.95803988]
[1739713216147,0.03562093,191.81,191.78,0.03886499]
[1739713216451,0.1524,191.89,191.78,0.03886499]
[1739713216645,0.03575144,191.81,191.78,0.03886499]
[1739713216949,0.1524,191.89,191.78,0.03886499]
[1739713217149,0.03535187,191.81,191.78,0.03886499]
[1739713217349,0.1524,191.89,191.78,0.03886499]
[1739713217541,0.03884828,191.81,191.78,0.03886499]
[1739713217740,0.1524,191.89,191.78,0.03886499]
[1739713217945,0.03807114,191.81,191.78,0.03886499]
[1739713218143,0.1524,191.89,191.78,0.03886499]
[1739713218344,0.03384232,191.81,191.78,0.03886499]
[1739713218547,0.1524,191.89,191.78,0.03886499]
[1739713218850,0.1524,191.89,191.68,3.168]
[1739713220052,0.0351777,191.8,191.77,0.0371278]
[1739713220252,0.1524,191.89,191.68,3.168]
[1739713220453,0.03587354,191.8,191.77,0.03633405]
[1739713220656,0.03587354,191.8,191.67,1.6117]
[1739713220852,0.1524,191.89,191.67,1.6117]
[1739713221046,0.1524,191.89,191.57,3.2335]
[1739713221252,0.1524,191.89,191.58,2.50695702]
[1739713221553,0.1524,191.89,191.59,0.95845702]
[1739713222059,0.03652931,191.76,191.72,0.03874356]
[1739713222253,0.03652931,191.76,191.59,0.95845702]
[1739713222555,0.03415053,191.69,191.66,0.03492473]
[1739713222950,0.1524,191.89,191.58,1.5485]
[1739713223152,0.03352092,191.69,191.58,1.5485]
[1739713223356,15.61,191.81,191.58,1.5485]
[1739713223558,0.1544,191.8,191.72,0.03552828]
[1739713223760,0.03304095,191.71,191.58,1.5485]
[1739713223951,0.1544,191.8,191.68,0.03560692]
[1739713224152,0.03503682,191.66,191.47,200.2]
[1739713224450,0.1544,191.8,191.59,3.1859]
[1739713224651,0.03699773,191.63,191.59,3.1859]
[1739713224850,0.1544,191.8,191.59,3.1859]
[1739713225056,0.1544,191.8,191.59,1.5617]
[1739713225362,0.03579998,191.71,191.68,0.03870823]
[1739713225752,0.1544,191.8,191.6,1.6242]
[1739713226055,0.03467871,191.71,191.68,0.03371778]
[1739713226256,0.1544,191.8,191.6,1.6242]
[1739713226557,0.03592034,191.71,191.68,0.03748066]
[1739713226757,0.1544,191.8,191.6,1.6242]
[1739713226957,0.03304619,191.71,191.68,0.03721826]
[1739713227258,0.1544,191.8,191.6,1.6242]
[1739713227456,0.0353071,191.71,191.68,0.03899256]
[1739713227654,0.1544,191.8,191.6,1.6242]
[1739713227855,0.03642804,191.71,191.68,0.03688176]
[1739713228258,0.1544,191.8,191.68,0.03386464]
[1739713228454,0.03790364,191.71,191.6,1.6242]
[1739713228657,0.1544,191.8,191.68,0.03835154]
[1739713228858,15.61,191.81,191.6,1.6242]
[1739713229159,0.03835812,191.76,191.72,0.03373327]
[1739713229960,0.1562,191.91,191.72,0.03373327]
[1739713230158,0.1562,191.91,191.61,0.95842688]
[1739713230355,15.7662,191.91,191.61,0.95842688]
[1739713230560,15.7662,191.91,191.61,195.0]
[1739713230858,15.61,191.85,191.6,1.6242]
[1739713231061,0.03815954,191.78,191.74,0.03928731]
[1739713231257,0.1562,191.91,191.61,0.95836823]
[1739713231561,0.1562,191.91,191.62,0.95836823]
[1739713231760,0.1562,191.91,191.63,0.95836823]
[1739713231962,0.1562,191.91,191.6,0.95836823]
[1739713232161,0.1562,191.91,191.61,0.95836823]
[1739713232557,0.0380614,191.78,191.74,0.03646399]
[1739713233055,0.03329337,191.78,191.74,0.0374077]
[1739713236263,0.03329337,191.78,191.61,0.95842233]
[1739713236458,0.2365,191.91,191.62,4.8461]
[1739713236662,1.04220948,191.9,191.62,4.8461]
[1739713237568,0.03472647,191.78,191.74,0.03903785]
[1739713237867,31.22,191.88,191.62,4.8461]
[1739713238061,1.04220948,191.9,191.74,0.03517055]
[1739713238062,0.03921463,191.78,191.74,0.03517055]
[1739713238258,31.22,191.84,191.62,4.8461]
[1739713238462,0.03761827,191.78,191.74,0.03413593]
[1739713238669,0.1933,191.81,191.62,4.8461]
[1739713238862,0.1933,191.81,191.74,0.03604383]
[1739713239168,0.1933,191.81,191.62,4.8461]
[1739713239367,0.03612188,191.79,191.76,0.03436941]
[1739713239567,0.1933,191.81,191.62,4.8461]
[1739713239764,0.0334063,191.79,191.76,0.03842429]
[1739713240069,0.1933,191.81,191.76,0.03912235]
[1739713240260,0.03990498,191.79,191.62,4.8461]
[1739713240463,0.1933,191.81,191.62,4.8461]
[1739713241570,0.03859559,191.73,191.7,0.0332118]
[1739713241759,31.22,191.79,191.7,0.0332118]
[1739713241962,0.03420229,191.73,191.7,0.0332118]
[1739713242858,0.03420229,191.73,191.39,5.2]
[1739713243063,0.79676231,191.74,191.44,4.8335]
[1739713243264,1.04313357,191.73,191.44,4.8335]
[1739713243568,105.22,191.72,191.44,4.8335]
[1739713243770,31.22,191.7,191.44,4.8335]
[1739713243969,0.03796634,191.66,191.62,0.03527278]
[1739713245265,73.40057309,191.73,191.62,0.03527278]
[1739713245866,57.79057309,191.73,191.62,0.03527278]
[1739713246465,0.03416894,191.69,191.62,0.03527278]
[1739713246667,57.79057309,191.73,191.62,0.03527278]
[1739713247773,0.03740197,191.69,191.62,0.03527278]
[1739713248473,15.61,191.79,191.62,0.03527278]
[1739713248674,31.22,191.82,191.58,0.95863647]
[1739713249778,0.03466778,191.72,191.68,0.03715128]
[1739713249975,15.61,191.83,191.57,1.6548]
[1739713250271,15.61,191.83,191.58,0.95841586]
[1739713251174,0.03606736,191.72,191.69,0.03829078]
[1739713251366,15.61,191.88,191.59,0.95834073]
[1739713251968,31.22,191.84,191.59,0.95834073]
[1739713252170,31.22,191.84,191.57,1.6548]
[1739713252574,0.03899165,191.72,191.69,0.03836233]
[1739713252874,31.22,191.84,191.57,1.6548]
[1739713253075,15.61,191.82,191.57,1.6548]
[1739713253276,31.22,191.82,191.57,1.6548]
[1739713253466,31.22,191.8,191.57,1.6548]
[1739713253874,0.03990964,191.7,191.67,0.03757345]
[1739713254075,31.22,191.8,191.57,1.6548]
[1739713254376,0.03995461,191.7,191.67,0.03810916]
[1739713254676,31.22,191.78,191.57,1.6548]
[1739713254876,0.0339633,191.7,191.67,0.03909981]
[1739713255076,15.61,191.74,191.67,0.03909981]
[1739713255276,0.03867315,191.7,191.67,0.03909981]
[1739713258678,15.61,191.68,191.57,1.6548]
[1739713259281,208.61,191.69,191.57,1.6548]
[1739713259874,0.03604451,191.65,191.61,0.03685646]
[1739713261773,0.2677,191.73,191.61,0.03685646]
[1739713261978,0.2677,191.73,191.57,1.6548]
[1739713262180,58.02673592,191.75,191.57,1.6548]
[1739713262982,0.03912829,191.68,191.64,0.03678975]
[1739713263485,58.02673592,191.75,191.64,0.03678975]
[1739713264685,0.03456869,191.71,191.64,0.03678975]
[1739713268191,193.0,191.76,191.64,0.03678975]
[1739713268487,193.0,191.76,191.58,0.95863174]
[1739713268696,15.61,191.82,191.58,0.95863174]
[1739713268996,15.61,191.8,191.59,0.95858002]
[1739713269289,193.0,191.81,191.68,0.03549482]
[1739713269488,193.0,191.81,191.58,0.95850862]
[1739713269685,0.03670827,191.76,191.73,0.03924869]
[1739713269994,0.3069,191.87,191.58,0.95850862]
[1739713270195,0.03871831,191.76,191.73,0.03985604]
[1739713270592,175.67084181,191.86,191.58,0.95850862]
[1739713270895,0.03285063,191.76,191.73,0.03327428]
[1739713271094,175.67084181,191.86,191.58,0.95850862]
[1739713271498,0.03703076,191.76,191.73,0.03510435]
[1739713271792,31.22,191.86,191.58,0.95850862]
[1739713272095,0.03620671,191.76,191.73,0.03713476]
[1739713272295,15.61,191.84,191.58,0.95850862]
[1739713272497,0.03850526,191.76,191.73,0.03466505]
[1739713272697,0.03850526,191.76,191.58,0.95850862]
[1739713272898,208.6921,191.83,191.73,0.0352338]
[1739713273196,0.03627124,191.69,191.58,0.95850862]
[1739713273400,193.0,191.82,191.58,0.95850862]
[1739713273593,0.03910824,191.65,191.62,0.03657077]
[1739713273892,193.0,191.81,191.62,0.03333001]
[1739713274093,193.0,191.8,191.59,0.95855638]
[1739713274393,0.03700622,191.73,191.7,0.03502819]
[1739713274598,15.61,191.79,191.7,0.03502819]
[1739713274891,0.03530255,191.73,191.7,0.03502819]
[1739713275096,0.03530255,191.73,191.57,1.6548]
[1739713275097,15.61,191.77,191.57,1.6548]
[1739713275302,0.03904077,191.73,191.7,0.03728518]
[1739713275496,193.0,191.78,191.57,1.6548]
[1739713275799,0.03579542,191.73,191.7,0.03625123]
[1739713275998,0.03579542,191.73,191.48,35.2513556]
[1739713276195,31.5267,191.77,191.56,4.5248]
[1739713277295,0.03538382,191.68,191.65,0.03715385]
[1739713277496,31.5267,191.77,191.56,4.5248]
[1739713277692,0.03395697,191.68,191.65,0.03344554]
[1739713277893,31.5267,191.77,191.56,4.5248]
[1739713279099,0.03405521,191.68,191.65,0.03584914]
[1739713279298,31.22,191.75,191.56,4.5248]
[1739713279600,0.03873074,191.68,191.65,0.03495829]
[1739713279804,0.0826,191.74,191.65,0.03495829]
[1739713280105,0.03322149,191.68,191.56,4.5248]
[1739713280299,0.0826,191.74,191.56,4.5248]
[1739713281504,0.04006643,191.67,191.63,0.03738737]
[1739713283897,0.3067,191.77,191.63,0.03738737]
[1739713284104,0.3067,191.77,191.56,4.5248]
[1739713284500,144.45084181,191.79,191.57,0.95867628]
[1739713285104,0.03702805,191.7,191.66,0.0385049]
[1739713285298,144.45084181,191.79,191.57,0.95867628]
[1739713285503,0.03531237,191.7,191.66,0.03602016]
[1739713285707,144.45084181,191.79,191.57,0.95867628]
[1739713285903,0.03794146,191.7,191.66,0.03351404]
[1739713286109,144.45084181,191.79,191.57,0.95867628]
[1739713286408,0.0388016,191.7,191.66,0.03770351]
[1739713286610,132.69,191.8,191.57,0.95867628]
[1739713286806,0.03384912,191.7,191.66,0.03633968]
[1739713287006,0.0824,191.81,191.57,0.95867628]
[1739713287007,15.6924,191.81,191.57,0.95867628]
[1739713287206,0.03748781,191.7,191.66,0.03409176]
[1739713287407,15.6924,191.81,191.57,0.95867628]
[1739713287608,0.03398584,191.7,191.66,0.0333806]
[1739713287798,15.61,191.79,191.56,4.5248]
[1739713287997,0.03668239,191.7,191.66,0.03591283]
[1739713288203,31.22,191.75,191.56,4.5248]
[1739713288403,15.61,191.73,191.56,4.5248]
[1739713288704,0.0823,191.72,191.56,4.5248]
[1739713289208,0.03578019,191.66,191.62,0.0361879]
[1739713295110,0.03578019,191.66,191.56,2.9455]
[1739713296114,0.03578019,191.66,191.59,0.03801944]
[1739713305119,15.61,191.64,191.59,0.03801944]
[1739713306116,15.61,191.62,191.29,231.82026121]
[1739713306311,15.61,191.58,191.54,25.03972178]
[1739713306817,15.61,191.62,191.54,25.03972178]
[1739713307016,15.61,191.61,191.54,25.03972178]
[1739713307416,0.03846175,191.59,191.56,0.03917948]
[1739713309721,0.03846175,191.59,191.54,25.03972178]
[1739713310819,0.03846175,191.59,191.55,0.03420182]
[1739713314218,0.03846175,191.59,191.54,25.03972178]
[1739713314422,0.03846175,191.59,191.47,0.18927]
[1739713314616,0.7971178,191.62,191.47,0.18927]
[1739713315521,0.03813202,191.56,191.53,0.03765404]
[1739713323234,0.03813202,191.56,191.54,25.0396441]
[1739713324432,15.61,191.63,191.54,25.0396441]
[1739713324626,15.61,191.63,191.55,25.0396441]
[1739713324830,15.61,191.63,191.48,4.9228]
[1739713325026,15.61,191.63,191.55,25.0396441]
[1739713325529,15.61,191.64,191.48,4.9228]
[1739713325732,0.03960314,191.61,191.57,0.03757603]
[1739713328534,0.03960314,191.61,191.57,25.07722013]
[1739713329533,0.03960314,191.61,191.57,0.03757603]
[1739713329734,0.03960314,191.61,191.59,25.0396441]
[1739713330234,0.03960314,191.61,191.57,0.03757603]
[1739713330739,0.03960314,191.61,191.6,25.0396441]
[1739713331032,22.89,191.67,191.6,25.0396441]
[1739713331228,22.89,191.67,191.58,3.1609]
[1739713331229,337.45084181,191.68,191.58,4.7696]
[1739713331425,337.45084181,191.68,191.64,25.0396441]
[1739713331728,337.45084181,191.68,191.58,4.7696]
[1739713331935,193.0,191.68,191.65,25.0396441]
[1739713332236,193.03643293,191.68,191.65,25.0396441]
[1739713332439,193.03643293,191.68,191.66,25.0396441]
[1739713332830,193.03643293,191.68,191.65,0.03562796]
[1739713333133,193.03643293,191.68,191.66,25.0396441]
[1739713333736,193.03643293,191.68,191.65,0.03355695]
[1739713337636,0.03643293,191.68,191.65,25.07320105]
[1739713337839,0.03643293,191.68,191.67,25.0396441]
[1739713338240,0.03643293,191.68,191.65,0.03355695]
[1739713338541,0.03643293,191.68,191.67,25.0396441]
[1739713339941,0.03643293,191.68,191.65,0.03355695]
[1739713340239,0.03643293,191.68,191.66,25.0396441]
[1739713340640,0.03643293,191.68,191.65,0.03355695]
[1739713340840,0.03643293,191.68,191.65,25.07320105]
[1739713341143,0.03643293,191.68,191.65,0.03355695]
[1739713341642,0.03643293,191.68,191.65,25.07320105]
[1739713342343,0.03643293,191.68,191.65,0.03355695]
[1739713346450,0.03643293,191.68,191.65,25.07320105]
[1739713347550,0.03643293,191.68,191.65,0.03355695]
[1739713350251,0.03643293,191.68,191.66,25.0396441]
[1739713350450,0.03643293,191.68,191.67,25.0396441]
[1739713350850,0.03643293,191.68,191.65,0.03355695]
[1739713351051,0.03643293,191.68,191.66,25.0396441]
[1739713351246,0.03643293,191.68,191.67,25.0396441]
[1739713352647,0.03643293,191.68,191.65,0.03355695]
[1739713352844,0.03643293,191.68,191.67,25.0396441]
[1739713353355,0.03643293,191.68,191.65,0.03355695]
[1739713353543,0.03643293,191.68,191.67,25.0396441]
[1739713353947,0.03643293,191.68,191.65,0.03355695]
[1739713354148,0.03643293,191.68,191.67,25.0396441]
[1739713354651,0.03643293,191.68,191.65,0.03355695]
[1739713354845,0.03643293,191.68,191.66,25.0396441]
[1739713356251,15.61,191.75,191.67,25.0396441]
[1739713356452,15.61,191.75,191.69,25.0396441]
[1739713357355,0.03978015,191.74,191.7,0.03339265]
[1739713357554,0.03978015,191.74,191.7,25.07303675]
[1739713359454,0.03978015,191.74,191.71,25.0396441]
[1739713359658,0.03978015,191.74,191.72,25.0396441]
[1739713359951,7.23978015,191.74,191.72,25.0396441]
[1739713360148,0.03978015,191.74,191.72,25.0396441]
[1739713360349,7.23978015,191.74,191.72,25.0396441]
[1739713360557,7.23978015,191.74,191.73,25.0396441]
[1739713360753,0.03978015,191.74,191.73,25.0396441]
[1739713361059,0.03978015,191.74,191.7,0.03339265]
[1739713361358,0.03978015,191.74,191.71,25.0396441]
[1739713361956,7.2,191.73,191.71,25.0396441]
[1739713362555,7.2,191.73,191.72,25.0396441]
[1739713362751,15.67,191.67,191.45,7.18901335]
[1739713362956,31.28,191.67,191.52,3.0759]
[1739713363959,0.03733309,191.61,191.58,0.03879173]
[1739713369461,0.03733309,191.61,191.58,0.00149173]
[1739713378862,15.67,191.7,191.58,0.00149173]
[1739713379056,15.67,191.7,191.5,0.18298]
[1739713379863,0.0356365,191.62,191.58,0.03584773]
[1739713380063,15.67,191.7,191.5,0.18298]
[1739713380265,0.03851986,191.62,191.58,0.03405595]
[1739713380466,15.67,191.7,191.5,0.18298]
[1739713380766,0.03905332,191.62,191.58,0.03969576]
[1739713380966,15.67,191.7,191.5,0.18298]
[1739713381268,0.03285038,191.62,191.58,0.03971843]
[1739713381471,31.34,191.7,191.5,0.18298]
[1739713381766,0.03576146,191.62,191.58,0.03447796]
[1739713381969,31.34,191.7,191.5,0.18298]
[1739713382168,0.035708,191.62,191.58,0.03305716]
[1739713382467,0.79750006,191.69,191.5,0.18298]
[1739713382664,0.03791915,191.62,191.58,0.03599761]
[1739713391570,35.95111171,191.7,191.58,0.03599761]
[1739713391772,26.9561741,191.7,191.36,3.2879]
[1739713392068,22.5723482,191.68,191.36,3.2879]
[1739713392668,0.03723582,191.54,191.5,0.03570617]
[1739713392869,22.5723482,191.68,191.36,3.2879]
[1739713393066,0.03624314,191.54,191.5,0.03665802]
[1739713393271,22.5723482,191.68,191.36,3.2879]
[1739713393577,0.0365552,191.54,191.5,0.03534412]
[1739713393774,1.04346011,191.67,191.36,3.2879]
[1739713394074,0.0330408,191.54,191.5,0.03811396]
[1739713394270,0.0330408,191.54,191.36,3.2879]
[1739713394476,0.03631112,191.54,191.5,0.03321625]
[1739713394677,22.5723482,191.64,191.36,3.2879]
[1739713394877,22.5723482,191.62,191.36,3.2879]
[1739713395081,0.03314044,191.54,191.5,0.0364408]
[1739713395379,22.5723482,191.6,191.36,3.2879]
[1739713395581,0.03801998,191.54,191.5,0.03754388]
[1739713395879,22.5723482,191.56,191.36,3.2879]
[1739713396178,6.9023482,191.54,191.36,3.2879]
[1739713396379,0.0339575,191.48,191.44,0.03983161]
[1739713405682,15.67,191.46,191.44,0.03983161]
[1739713405985,15.67,191.46,191.4,28.4434534]
[1739713406186,31.34,191.46,191.37,33.90888655]
[1739713406389,15.67,191.46,191.37,33.90888655]
[1739713407083,0.03830638,191.43,191.4,0.03986573]
[1739713410983,55.19196894,191.47,191.4,0.03986573]
[1739713412189,0.03437636,191.45,191.4,0.03986573]
[1739713414790,55.19196894,191.47,191.4,0.03986573]
[1739713415993,0.03670385,191.45,191.4,0.03986573]
[1739713418397,55.19196894,191.47,191.4,0.03986573]
[1739713419196,158.46756835,191.6,191.4,0.03986573]
[1739713419595,0.03966747,191.52,191.48,0.03813995]
[1739713419790,174.13756835,191.6,191.36,0.21696]
[1739713419998,174.13756835,191.6,191.48,0.03897603]
[1739713420188,0.03505263,191.5,191.36,0.21696]
[1739713420588,174.13756835,191.6,191.52,0.03918909]
[1739713420893,0.03883143,191.58,191.54,0.03650046]
[1739713421094,174.13756835,191.6,191.36,0.21696]
[1739713421396,0.0391941,191.58,191.54,0.03599668]
[1739713421597,174.13756835,191.6,191.36,0.21696]
[1739713421799,0.03328608,191.58,191.54,0.03912263]
[1739713422001,174.13756835,191.6,191.36,0.21696]
[1739713422301,0.03358189,191.58,191.54,0.03388216]
[1739713422500,31.34,191.6,191.36,0.21696]
[1739713422701,0.03751481,191.58,191.54,0.03530628]
[1739713422993,0.03635047,191.58,191.54,0.033487]
[1739713444620,31.34,191.68,191.54,0.033487]
[1739713445024,31.34,191.68,191.46,0.19179]
[1739713445826,0.03790132,191.59,191.55,0.03527247]
[1739713446017,31.34,191.68,191.46,0.19179]
[1739713446216,0.03873671,191.59,191.55,0.03413507]
[1739713451427,31.34,191.58,191.46,0.19179]
[1739713451622,31.34,191.56,191.46,0.19179]
[1739713451827,148.52,191.56,191.46,0.19179]
[1739713452530,0.0384526,191.53,191.49,0.03344363]
[1739713458435,0.0384526,191.53,191.46,0.19179]
[1739713459633,0.0384526,191.53,191.48,0.03749205]
[1739713462342,0.0384526,191.53,191.46,0.15449]
[1739713462633,31.34,191.51,191.46,0.15449]
[1739713462832,31.34,191.49,191.46,0.15449]
[1739713463437,31.34,191.49,191.46,0.19230971]
[1739713463840,31.34,191.49,191.46,0.03781971]
[1739713468243,31.34,191.47,191.46,0.03781971]
[1739713474342,32.38455006,191.47,191.12,21.39832007]
[1739713474543,0.78942471,191.46,191.15,4.8663]
[1739713474741,0.78942471,191.46,191.16,0.96073899]
[1739713475239,6.24941956,191.45,191.15,4.8663]
[1739713475539,0.03679029,191.33,191.29,0.04009577]
[1739713475943,31.34,191.44,191.16,0.96070757]
[1739713476144,0.03823735,191.33,191.29,0.03715769]
[1739713476346,31.34,191.44,191.16,0.96070757]
[1739713476546,0.03314322,191.33,191.29,0.03681418]
[1739713476744,31.34,191.44,191.16,0.96070757]
[1739713477040,0.03344342,191.33,191.29,0.03629251]
[1739713477246,31.34,191.44,191.16,0.96070757]
[1739713477543,31.34,191.44,191.17,0.96048745]
[1739713477742,15.67,191.42,191.18,8.12048745]
[1739713477946,15.67,191.42,191.19,0.96048745]
[1739713478143,15.67,191.42,191.2,0.96048745]
[1739713478445,0.03719366,191.3,191.27,0.03959677]
[1739713478645,15.67,191.44,191.22,1.6059]
[1739713478841,15.67,191.46,191.22,1.6059]
[1739713479741,0.03441754,191.36,191.32,0.03637081]
[1739713479945,32.38455006,191.47,191.22,1.6059]
[1739713481044,0.03426023,191.36,191.33,0.03635209]
[1739713481244,32.38455006,191.47,191.22,1.6059]
[1739713482451,0.03500472,191.36,191.33,0.03413952]
[1739713482749,32.38455006,191.47,191.22,1.6059]
[1739713483750,0.03641096,191.36,191.33,0.03338679]
[1739713483950,32.38455006,191.47,191.23,1.5584]
[1739713484152,0.03594698,191.36,191.33,0.03818317]
[1739713484453,32.38455006,191.47,191.23,1.5584]
[1739713484747,0.03388067,191.36,191.33,0.03584006]
[1739713484947,31.34,191.43,191.23,1.5584]
[1739713485150,0.03925523,191.36,191.33,0.03774343]
[1739713485350,31.34,191.43,191.33,0.03774343]
[1739713485549,0.03477032,191.36,191.33,0.03774343]
[1739713485750,31.34,191.43,191.33,0.03774343]
[1739713486056,0.03576016,191.36,191.33,0.03774343]
[1739713486349,0.03426189,191.36,191.33,0.03774343]
[1739713491951,193.0,191.44,191.33,0.03774343]
[1739713492153,15.67,191.46,191.33,0.03774343]
[1739713492357,15.67,191.46,191.24,1.6765]
[1739713492559,31.34,191.46,191.24,1.6765]
[1739713493159,0.03748375,191.37,191.33,0.03397617]
[1739713493361,15.67,191.41,191.24,1.6765]
[1739713493562,0.03910343,191.37,191.33,0.03404451]
[1739713514382,0.03910343,191.37,191.21,0.21749]
[1739713514690,31.34,191.43,191.21,0.21749]
[1739713515481,174.13756835,191.43,191.21,0.21749]
[1739713515688,0.03630187,191.34,191.3,0.03786256]
[1739713515884,80.51034963,191.41,191.21,1.75959]
[1739713516082,0.03813794,191.34,191.3,0.03394065]
[1739713525887,0.03813794,191.34,191.21,1.75959]
[1739713526088,0.1735,191.39,191.21,1.75959]
[1739713526589,143.44652389,191.27,191.21,1.75959]
[1739713526786,0.03915985,191.26,191.22,0.03379807]
[1739713527189,143.44652389,191.34,191.22,0.03379807]
[1739713527587,143.44652389,191.34,191.21,1.75959]
[1739713528380,0.03299388,191.29,191.26,0.03908533]
[1739713528586,143.44652389,191.37,191.26,0.03908533]
[1739713528785,143.44652389,191.37,191.21,1.75959]
[1739713529587,0.03708667,191.31,191.27,0.03807764]
[1739713537394,143.44652389,191.3,191.27,0.03807764]
[1739713539697,143.44652389,191.29,191.27,0.03807764]
[1739713541090,143.44652389,191.3,191.27,0.03807764]
[1739713542403,165.32986527,191.31,191.27,0.03807764]
[1739713543697,0.03708667,191.31,191.27,0.03807764]
[1739713544905,133.31852389,191.32,191.27,0.03807764]
[1739713545099,130.78652389,191.32,191.27,0.03807764]
[1739713545405,179.30815487,191.41,191.27,0.03807764]
[1739713545600,179.30815487,191.41,191.21,1.75959]
[1739713546005,0.03853587,191.33,191.29,0.0341573]
[1739713546193,179.30815487,191.41,191.21,1.75959]
[1739713547201,49.41571812,191.43,191.21,1.75959]
[1739713547401,0.03723387,191.33,191.29,0.03994228]
[1739713547603,49.41571812,191.43,191.21,196.75959]
[1739713548701,179.30815487,191.48,191.21,196.75959]
[1739713548907,179.30815487,191.48,191.3,0.03614871]
[1739713549303,179.30815487,191.48,191.37,0.03501847]
[1739713549508,179.30815487,191.48,191.22,0.96016178]
[1739713549703,179.30815487,191.48,191.41,0.03859572]
[1739713549902,179.30815487,191.48,191.22,0.96016178]
[1739713550103,179.30815487,191.48,191.43,0.03347609]
[1739713550402,179.30815487,191.48,191.21,196.75959]
[1739713550603,180.94495487,191.51,191.21,196.75959]
[1739713550803,196.61495487,191.51,191.33,0.04021032]
[1739713551005,196.61495487,191.51,191.21,196.75959]
[1739713551207,196.61495487,191.51,191.4,0.03981371]
[1739713551405,196.61495487,191.51,191.21,196.75959]
[1739713551707,196.61495487,191.51,191.44,0.03850445]
[1739713551911,196.61495487,191.51,191.21,196.75959]
[1739713552108,196.61495487,191.51,191.46,0.03929876]
[1739713552308,179.30815487,191.48,191.21,196.75959]
[1739713552610,1.6312,191.47,191.21,196.75959]
[1739713553110,1.6281,191.46,191.21,196.75959]
[1739713553512,0.03992985,191.35,191.32,0.03372481]
[1739713553713,1.6281,191.46,191.21,196.75959]
[1739713553911,0.038312,191.35,191.32,0.03888873]
[1739713554210,1.6281,191.46,191.21,196.75959]
[1739713554410,0.03808031,191.35,191.32,0.03817153]
[1739713554612,1.6281,191.46,191.21,196.75959]
[1739713554812,0.03317491,191.35,191.32,0.03479207]
[1739713555013,1.6281,191.46,191.22,0.96030418]
[1739713555215,0.03563471,191.35,191.32,0.03493321]